bitfinex/quotes_ETHUSD_20260126
["timestamp","ask_amount","ask_price","bid_price","bid_amount"]
[1769463214874,0.002,2914.5,2914.0,5.90475799]
[1769463215884,0.002,2914.7,2914.1,5.90475799]
[1769463216100,0.002,2914.7,2914.2,11.69828358]
[1769463216398,0.002,2914.7,2914.3,5.90475799]
[1769463226095,0.002,2914.5,2914.3,5.90475799]
[1769463226313,5.77789352,2915.2,2914.4,5.90475799]
[1769463226884,5.77789352,2915.2,2914.3,0.5905758]
[1769463228316,5.77789352,2915.2,2914.3,6.49533379]
[1769463229717,0.002,2915.5,2914.6,6.18313669]
[1769463230014,0.002,2915.5,2914.8,11.97666228]
[1769463230316,0.002,2915.5,2914.8,12.93346884]
[1769463233433,0.002,2915.5,2914.8,7.13994325]
[1769463233818,0.002,2915.9,2915.2,6.18313669]
[1769463234206,0.002,2915.9,2915.4,11.97666228]
[1769463234810,6.29398623,2917.6,2915.8,6.18313669]
[1769463235011,6.29398623,2917.6,2916.0,5.79352559]
[1769463235012,6.29398623,2917.2,2916.0,5.79352559]
[1769463235324,10.095788,2916.7,2915.7,11.97666228]
[1769463235521,10.062093,2916.6,2915.8,6.18313669]
[1769463235701,6.29398623,2916.7,2915.8,6.77371249]
[1769463235902,3.715964,2916.6,2915.8,6.77371249]
[1769463236098,6.29398623,2916.6,2915.8,6.77371249]
[1769463238194,6.29398623,2916.6,2915.8,0.5905758]
[1769463238524,5.900593,2916.6,2915.9,6.18313669]
[1769463238719,5.900593,2916.6,2916.0,6.86050794]
[1769463240221,6.29598623,2916.7,2916.0,0.67737125]
[1769463242132,6.29398623,2917.1,2916.1,5.78280579]
[1769463242424,6.29398623,2917.1,2916.2,0.73175144]
[1769463242625,6.29398623,2917.9,2916.7,5.78280579]
[1769463242933,5.78280579,2918.5,2916.7,5.78280579]
[1769463242934,10.010413,2917.6,2916.7,5.78280579]
[1769463243130,6.29398623,2918.5,2917.0,5.78280579]
[1769463243330,4.628513,2918.2,2917.3,5.78280579]
[1769463243631,6.29398623,2918.1,2917.0,5.78280579]
[1769463243826,6.29398623,2918.1,2917.1,0.57828058]
[1769463244408,6.29398623,2917.7,2916.4,5.78280579]
[1769463244613,6.29398623,2917.5,2916.4,5.78280579]
[1769463244909,6.29398623,2917.1,2916.1,5.78280579]
[1769463245510,6.29398623,2917.1,2916.0,0.67737125]
[1769463245710,6.92338485,2917.0,2916.0,0.67737125]
[1769463246601,6.92338485,2917.0,2915.9,6.18313669]
[1769463249738,6.92338485,2917.0,2916.1,0.001]
[1769463252003,6.29398623,2916.8,2916.1,0.001]
[1769463252848,6.29398623,2916.4,2915.1,7.04072281]
[1769463253334,6.29398623,2916.2,2915.1,6.18313669]
[1769463256506,6.29398623,2916.0,2914.8,6.18313669]
[1769463262570,6.29398623,2916.0,2915.0,0.001]
[1769463262768,6.29398623,2916.0,2915.0,5.88249527]
[1769463262968,6.39914227,2915.9,2915.0,5.88249527]
[1769463265269,6.39914227,2915.9,2915.0,0.001]
[1769463265635,11.147545,2915.6,2915.0,0.001]
[1769463265979,5.76974365,2915.5,2915.0,0.001]
[1769463266670,5.76974365,2915.5,2914.7,0.001]
[1769463266968,5.76974365,2915.3,2914.7,0.001]
[1769463273276,5.76974365,2915.1,2914.2,0.719]
[1769463273660,5.76974365,2915.1,2914.2,6.60049527]
[1769463273973,5.76974365,2915.1,2914.1,5.79053248]
[1769463274174,5.76974365,2915.1,2914.1,11.67202775]
[1769463274359,5.76974365,2915.1,2914.9,0.001]
[1769463274559,0.57697437,2915.0,2914.9,0.001]
[1769463274756,6.34671802,2915.0,2914.1,11.67202775]
[1769463275579,6.34671802,2915.0,2914.2,5.88149527]
[1769463275780,6.34671802,2915.0,2914.1,5.79053248]
[1769463275781,5.76974365,2915.6,2914.7,5.78953248]
[1769463275981,5.76974365,2915.8,2915.0,5.78953248]
[1769463277150,5.76974365,2915.8,2914.9,5.88149527]
[1769463282886,5.76974365,2916.2,2915.1,5.88149527]
[1769463283086,2.684781,2916.1,2915.1,5.88149527]
[1769463283292,0.84545246,2916.0,2915.1,5.88149527]
[1769463286191,0.002,2915.6,2915.1,5.88149527]
[1769463290863,5.73980545,2915.6,2914.7,5.76489072]
[1769463293194,5.73780545,2915.5,2914.5,5.76489072]
[1769463293530,0.002,2915.6,2914.8,5.76489072]
[1769463293709,0.002,2915.6,2914.8,6.92033304]
[1769463298891,0.002,2915.4,2914.8,6.92033304]
[1769463301026,0.002,2915.8,2915.4,5.76489072]
[1769463301709,5.73780545,2916.4,2915.4,5.76489072]
[1769463302210,3.378238,2916.2,2915.4,5.76489072]
[1769463302380,5.73780545,2916.3,2915.4,5.76489072]
[1769463302709,3.43051937,2916.8,2914.9,5.76489072]
[1769463302710,5.73780545,2916.0,2914.9,5.76489072]
[1769463303412,5.73780545,2916.0,2914.8,2.01313235]
[1769463303413,5.73780545,2916.0,2915.1,5.76489072]
[1769463304199,6.64348967,2916.7,2915.5,5.78633526]
[1769463304200,5.73780545,2916.7,2915.5,5.78633526]
[1769463304380,5.73780545,2916.5,2915.5,5.76489072]
[1769463307516,5.73780545,2916.4,2915.5,5.76489072]
[1769463307692,6.311586,2916.4,2915.5,5.76489072]
[1769463311111,6.311586,2916.4,2915.7,0.001]
[1769463311509,0.002,2916.3,2915.7,0.001]
[1769463312283,5.73980545,2916.3,2915.7,0.001]
[1769463315321,0.002,2916.3,2915.7,0.001]
[1769463315501,0.002,2916.3,2915.7,5.76589072]
[1769463318032,0.57618055,2916.3,2915.7,5.76589072]
[1769463318938,5.81613861,2916.3,2915.0,4.79102585]
[1769463319138,0.57618055,2916.3,2915.5,11.12912311]
[1769463319440,0.002,2916.3,2915.5,5.34278785]
[1769463323548,0.002,2916.3,2915.5,11.12912311]
[1769463323742,0.002,2916.3,2915.7,0.001]
[1769463325421,5.54769313,2916.3,2915.7,0.001]
[1769463333444,0.002,2916.3,2915.7,0.001]
[1769463333645,0.55696931,2916.3,2915.7,0.001]
[1769463335355,0.002,2916.1,2915.7,0.001]
[1769463359545,0.002,2915.9,2915.7,0.001]
[1769463383804,4.52778498,2915.7,2914.9,4.61845754]
[1769463384114,1.0388263,2915.6,2914.7,4.61845754]
[1769463384414,4.52978498,2915.7,2914.8,4.61845754]
[1769463384577,4.52978498,2915.7,2914.6,4.61845754]
[1769463385514,4.52778498,2915.5,2914.3,0.001]
[1769463385702,18.122353,2915.4,2914.3,0.001]
[1769463385884,4.52778498,2915.2,2914.3,0.001]
[1769463386408,4.52778498,2915.6,2914.7,5.78502001]
[1769463386713,4.52778498,2915.6,2914.7,10.40347755]
[1769463387313,4.52778498,2915.2,2914.4,5.78502001]
[1769463387815,4.52778498,2915.2,2914.3,0.001]
[1769463388114,4.98056348,2915.2,2914.3,5.6600053]
[1769463391611,4.98056348,2915.2,2914.4,10.40347755]
[1769463394027,0.4527785,2915.2,2914.5,4.61845754]
[1769463395701,0.4527785,2915.2,2914.5,4.61945754]
[1769463396297,0.002,2915.7,2915.1,4.61845754]
[1769463399993,0.002,2915.7,2915.0,5.78502001]
[1769463400222,0.002,2915.7,2915.0,10.40347755]
[1769463411844,0.002,2915.7,2915.1,4.49479504]
[1769463415453,0.002,2915.9,2915.4,4.49479504]
[1769463417153,0.002,2916.1,2915.4,4.49479504]
[1769463419261,0.002,2915.9,2915.4,4.49479504]
[1769463421960,0.002,2915.9,2914.3,0.001]
[1769463421961,4.77007934,2915.7,2914.3,0.001]
[1769463422165,5.78702001,2915.9,2914.3,0.001]
[1769463422166,4.77007934,2915.3,2914.5,4.49579504]
[1769463422463,4.77007934,2915.3,2914.5,0.001]
[1769463423061,4.77007934,2915.3,2914.3,4.49579504]
[1769463423062,4.77007934,2915.1,2914.3,0.001]
[1769463425670,4.77007934,2914.9,2914.3,0.001]
[1769463427642,4.77007934,2915.6,2914.3,4.49579504]
[1769463427843,4.77007934,2915.2,2914.3,4.49579504]
[1769463429886,4.77007934,2915.5,2914.6,4.49479504]
[1769463431578,3.527897,2915.7,2915.0,4.49479504]
[1769463431775,0.002,2915.2,2915.0,4.49479504]
[1769463431966,4.77207934,2915.9,2915.0,4.49479504]
[1769463432885,3.537801,2915.8,2915.0,4.49479504]
[1769463433085,3.523628,2915.7,2915.0,4.49479504]
[1769463434571,8.29370734,2915.7,2914.7,4.49479504]
[1769463434745,5.59945007,2915.6,2914.7,4.49479504]
[1769463435688,5.59945007,2915.6,2914.5,0.001]
[1769463437196,5.59945007,2915.6,2914.5,4.49579504]
[1769463438859,11.76298,2915.5,2914.5,4.49579504]
[1769463439187,4.82404016,2915.2,2914.5,0.001]
[1769463439551,4.82404016,2915.2,2914.5,0.4473156]
[1769463442376,4.56127511,2915.5,2914.5,5.31241482]
[1769463443279,4.56127511,2915.8,2914.9,4.86509922]
[1769463446064,0.002,2915.9,2914.9,4.86509922]
[1769463446302,4.56327511,2915.9,2915.0,5.52876027]
[1769463455524,0.002,2915.7,2915.0,5.52876027]
[1769463461836,4.56327511,2915.7,2915.0,0.66366105]
[1769463462022,4.56327511,2915.7,2914.8,4.86509922]
[1769463464236,4.749003,2915.6,2914.7,0.001]
[1769463464539,4.56127511,2915.6,2914.7,0.001]
[1769463466260,4.56127511,2915.4,2914.7,0.001]
[1769463466810,4.56127511,2915.4,2915.0,0.001]
[1769463467017,0.45612751,2915.3,2915.0,0.001]
[1769463476611,4.56127511,2915.4,2915.0,0.001]
[1769463479450,4.56127511,2915.4,2915.2,0.001]
[1769463479945,4.56327511,2915.4,2915.2,0.001]
[1769463484344,4.56327511,2915.4,2915.0,0.001]
[1769463490754,8.308296,2915.1,2914.7,0.001]
[1769463490957,1.31436035,2915.0,2914.7,0.001]
[1769463491156,4.83530752,2914.9,2914.7,0.001]
[1769463491457,4.83530752,2914.9,2914.3,0.001]
[1769463491657,4.83530752,2914.7,2914.3,0.001]
[1769463492951,4.83530752,2915.0,2914.3,0.001]
[1769463493252,6.935312,2914.7,2914.3,0.001]
[1769463493465,6.01236947,2914.6,2914.3,0.001]
[1769463493667,4.83530752,2914.6,2914.3,0.001]
[1769463493863,4.83530752,2914.5,2914.3,0.001]
[1769463494023,8.554233,2914.4,2914.3,0.001]
[1769463494227,6.390788,2914.4,2914.3,0.001]
[1769463494428,6.49991555,2914.4,2914.3,0.001]
[1769463495333,5.74009455,2914.4,2914.3,0.001]
[1769463495733,10.57540207,2914.4,2914.3,0.001]
[1769463496765,5.95791707,2914.4,2914.1,0.001]
[1769463496959,4.83530752,2914.4,2914.1,0.001]
[1769463498062,4.83530752,2914.8,2914.1,0.001]
[1769463498269,2.559748,2914.5,2914.1,0.001]
[1769463498433,2.273828,2914.5,2914.1,0.001]
[1769463499846,4.83530752,2914.6,2914.1,0.001]
[1769463500033,3.304461,2914.4,2914.1,0.001]
[1769463502567,2.723461,2914.4,2914.1,0.001]
[1769463502768,4.78418722,2915.2,2914.3,10.31149033]
[1769463503070,4.78418722,2915.2,2914.4,4.52264114]
[1769463513782,0.002,2915.2,2914.4,4.52264114]
[1769463513962,0.002,2915.2,2914.4,4.65358946]
[1769463514676,0.002,2915.4,2914.6,5.78884919]
[1769463514843,0.002,2915.7,2915.0,4.66465324]
[1769463516188,0.002,2915.5,2915.0,4.66465324]
[1769463519079,0.002,2915.9,2915.3,4.70572169]
[1769463519448,0.002,2916.1,2915.3,4.70372169]
[1769463519647,0.002,2916.1,2915.2,5.78884919]
[1769463519648,0.002,2916.3,2915.6,4.70372169]
[1769463519965,0.002,2916.3,2915.8,10.50303378]
[1769463520166,0.002,2916.3,2915.9,4.71418459]
[1769463520365,0.002,2916.5,2915.9,4.71418459]
[1769463525117,4.78218722,2916.1,2915.0,4.44733383]
[1769463525317,4.78218722,2915.9,2914.8,0.76954883]
[1769463525615,4.78218722,2915.9,2914.9,0.76954883]
[1769463526629,5.26040594,2915.9,2914.6,5.78884919]
[1769463527724,5.26040594,2915.9,2915.1,0.001]
[1769463528022,4.78218722,2915.6,2915.1,0.001]
[1769463530800,5.01171772,2915.4,2915.1,0.001]
[1769463531130,5.01171772,2915.2,2914.3,0.001]
[1769463533147,0.85747206,2915.6,2914.3,0.001]
[1769463533148,5.01171772,2915.0,2914.3,0.001]
[1769463534651,23.617088,2914.7,2914.1,0.001]
[1769463534943,5.01171772,2914.6,2914.1,0.001]
[1769463535152,5.51288949,2914.6,2914.1,0.001]
[1769463535361,5.51288949,2914.6,2913.9,0.001]
[1769463536946,4.561285,2914.5,2913.9,0.001]
[1769463537263,5.01171772,2914.2,2913.9,0.001]
[1769463538369,5.01171772,2914.4,2913.9,0.001]
[1769463538564,5.56300667,2914.4,2913.9,0.001]
[1769463538967,2.672501,2914.3,2913.9,0.001]
[1769463539185,5.01171772,2914.2,2913.9,0.001]
[1769463540128,5.01171772,2914.2,2914.1,0.001]
[1769463541564,5.01171772,2914.2,2913.9,0.001]
[1769463541770,5.56801839,2914.2,2913.9,0.001]
[1769463543911,0.55630067,2914.2,2913.9,0.001]
[1769463544034,5.01171772,2914.4,2913.9,0.001]
[1769463549390,5.01171772,2914.6,2913.9,0.001]
[1769463552799,5.01171772,2914.6,2914.1,0.002]
[1769463552999,0.001,2914.2,2914.1,0.002]
[1769463577551,5.36883614,2914.8,2914.1,0.002]
[1769463578947,5.36883614,2915.1,2914.1,0.002]
[1769463580330,5.36883614,2915.1,2914.3,5.79109257]
[1769463581058,5.36883614,2915.1,2914.3,7.63705264]
[1769463583657,0.002,2915.4,2914.3,7.63705264]
[1769463583658,5.36883614,2915.3,2914.3,7.63705264]
[1769463583863,5.36883614,2915.3,2914.6,5.79109257]
[1769463585160,5.37083614,2915.4,2914.6,7.6866372]
[1769463585361,0.002,2915.4,2914.9,5.79109257]
[1769463587767,0.002,2915.2,2914.9,5.79109257]
[1769463587962,0.002,2915.2,2915.0,0.57910926]
[1769463593344,0.002,2915.4,2915.0,0.57910926]
[1769463599167,0.002,2915.2,2915.0,0.57910926]
[1769463599477,0.002,2915.4,2915.0,0.57910926]
[1769463599772,5.24020544,2915.9,2915.2,5.79109257]
[1769463600147,5.23820544,2916.1,2915.5,5.79109257]
[1769463600563,5.23820544,2916.3,2915.5,5.79109257]
[1769463600874,3.483937,2916.2,2915.5,5.79109257]
[1769463601083,8.72214244,2916.2,2915.6,0.57910926]
[1769463601243,5.23820544,2916.2,2915.6,0.57910926]
[1769463603645,5.24020544,2916.4,2915.6,0.57910926]
[1769463605082,5.24020544,2916.4,2915.2,8.75485979]
[1769463606782,5.24020544,2916.4,2915.2,7.89729417]
[1769463607283,5.24020544,2916.4,2915.2,8.75486406]
[1769463607872,5.24020544,2916.4,2915.5,5.79109257]
[1769463609647,5.24020544,2916.4,2915.8,5.78301931]
[1769463609981,5.24020544,2916.4,2915.9,0.57830193]
[1769463610182,0.002,2916.8,2916.1,5.78301931]
[1769463610686,0.002,2916.8,2916.2,5.15264188]
[1769463611365,0.002,2916.4,2916.2,5.15264188]
[1769463611567,0.002,2916.8,2916.2,5.15264188]
[1769463613458,0.002,2916.9,2916.4,5.78301931]
[1769463614476,5.24020544,2916.9,2916.1,5.78301931]
[1769463616060,5.24020544,2916.9,2916.1,11.79296711]
[1769463616258,0.002,2916.9,2916.2,5.15264188]
[1769463623195,0.002,2916.7,2916.2,5.15264188]
[1769463623696,0.002,2916.9,2916.2,5.15264188]
[1769463623886,0.002,2916.9,2916.2,5.95073339]
[1769463625192,0.002,2917.1,2916.7,5.78301931]
[1769463626787,5.38787451,2917.1,2916.4,5.78301931]
[1769463629680,5.38787451,2917.1,2916.4,6.64023905]
[1769463629864,5.38787451,2917.1,2916.5,0.6640239]
[1769463632799,0.002,2917.1,2916.5,0.6640239]
[1769463633122,0.002,2917.1,2916.5,1.52121027]
[1769463633417,5.38587451,2917.4,2916.7,5.78301931]
[1769463634118,5.38787451,2917.6,2916.7,11.7337527]
[1769463634310,5.38787451,2917.6,2917.0,5.78301931]
[1769463634510,0.002,2917.6,2917.0,5.78301931]
[1769463635492,5.38587451,2917.8,2917.0,5.78301931]
[1769463635697,5.38587451,2918.0,2917.0,11.7337527]
[1769463636006,5.21604478,2917.9,2917.0,11.7337527]
[1769463636206,5.21504577,2917.9,2917.1,0.6640239]
[1769463640503,5.38787451,2918.1,2917.3,5.78301931]
[1769463641505,5.38787451,2918.1,2917.3,11.7337527]
[1769463641718,0.002,2918.1,2917.6,5.78301931]
[1769463641910,0.002,2918.1,2917.7,0.44595275]
[1769463646302,5.38587451,2918.8,2917.9,5.78301931]
[1769463646737,5.38587451,2918.8,2917.9,11.7337527]
[1769463647538,5.38587451,2919.4,2918.2,5.78301931]
[1769463647755,5.38587451,2919.2,2918.2,6.44704321]
[1769463648037,0.002,2918.6,2918.2,6.44704321]
[1769463648240,5.38787451,2918.6,2917.5,5.95073339]
[1769463648439,5.38587451,2918.4,2917.3,0.85695676]
[1769463648605,5.38587451,2918.4,2917.3,6.80769015]
[1769463650510,5.38587451,2918.4,2917.5,5.78301931]
[1769463653241,0.002,2918.6,2918.1,5.78301931]
[1769463653449,0.002,2918.6,2917.8,11.50723631]
[1769463653759,5.8799284,2918.6,2917.8,11.50723631]
[1769463654129,5.8799284,2918.6,2917.8,5.78301931]
[1769463654508,5.8799284,2918.6,2917.6,0.57830193]
[1769463654735,5.8779284,2918.4,2917.4,0.718]
[1769463654933,5.8779284,2918.4,2917.5,5.78301931]
[1769463656436,5.8779284,2918.4,2917.4,0.718]
[1769463656940,0.58799284,2918.5,2917.4,5.724217]
[1769463657128,0.002,2918.6,2918.0,5.78301931]
[1769463657329,5.8799284,2918.8,2918.0,11.50723631]
[1769463657542,0.002,2918.8,2918.0,11.50723631]
[1769463657758,0.002,2918.8,2918.1,5.724217]
[1769463658543,0.002,2918.8,2918.0,5.78301931]
[1769463658734,5.8799284,2918.8,2918.0,5.78301931]
[1769463658935,5.8799284,2918.8,2917.7,5.724217]
[1769463659164,0.002,2918.8,2918.2,11.50723631]
[1769463659317,0.002,2918.8,2918.0,5.724217]
[1769463659513,5.8799284,2918.8,2918.0,5.724217]
[1769463659714,5.8799284,2918.8,2917.9,5.78301931]
[1769463660444,0.002,2918.6,2917.9,5.78301931]
[1769463660650,5.8799284,2918.6,2917.9,5.78301931]
[1769463667255,0.002,2918.6,2917.9,6.63979954]
[1769463667463,0.002,2918.8,2918.2,5.78301931]
[1769463670675,5.8779284,2918.7,2917.7,5.78401931]
[1769463671326,5.8779284,2918.5,2917.7,0.001]
[1769463671926,5.8779284,2918.5,2918.1,0.001]
[1769463681444,0.002,2918.8,2918.3,6.07079034]
[1769463681655,6.5611824,2923.7,2919.8,0.00137609]
[1769463681969,5.77693009,2925.0,2922.2,5.77693009]
[1769463681970,0.01208146,2922.4,2922.2,5.77693009]
[1769463682308,0.02408146,2922.2,2922.0,5.77693009]
[1769463682582,0.02408146,2922.3,2922.1,5.77693009]
[1769463682746,6.0424978,2923.4,2922.2,1.30266125]
[1769463682950,6.0424978,2923.4,2922.3,0.72496824]
[1769463683144,6.0424978,2923.4,2922.4,10.59864483]
[1769463683363,30.0,2924.1,2922.7,5.77693009]
[1769463683658,2.188559,2924.2,2922.8,4.87734783]
[1769463683968,0.82310568,2924.1,2922.9,6.79575858]
[1769463684149,0.718,2924.5,2923.0,0.72496824]
[1769463684487,3.313832,2924.4,2923.1,0.72496824]
[1769463684794,6.0424978,2923.9,2923.2,0.72496824]
[1769463684972,6.0424978,2923.9,2922.3,3.42194508]
[1769463685279,6.0424978,2923.9,2922.9,0.85529443]
[1769463685486,0.60424978,2923.8,2923.0,0.71880809]
[1769463685789,6.0424978,2923.6,2921.4,14.5]
[1769463685976,6.0424978,2923.4,2921.5,6.07079034]
[1769463686155,7.222356,2923.2,2922.0,0.85557349]
[1769463686356,7.222356,2923.2,2921.6,6.92648584]
[1769463686555,13.2648538,2923.2,2921.6,6.92648584]
[1769463686757,14.116987,2922.8,2921.4,0.85573397]
[1769463686947,6.0424978,2922.7,2921.5,0.85570709]
[1769463687765,6.0424978,2923.2,2921.5,0.85570709]
[1769463688161,6.0424978,2923.2,2921.5,6.92649743]
[1769463691455,6.0424978,2923.2,2921.5,0.85570709]
[1769463691659,0.718,2923.3,2921.6,6.49865701]
[1769463691660,0.67604978,2923.1,2921.6,6.49865701]
[1769463691986,6.7604978,2923.3,2921.6,6.49865701]
[1769463693395,6.7604978,2923.3,2921.8,6.07079034]
[1769463693655,6.7604978,2923.3,2921.7,0.85566622]
[1769463693891,6.0424978,2923.1,2921.7,0.85566622]
[1769463694202,2.30555568,2923.0,2921.8,0.47061978]
[1769463694497,0.718,2923.3,2921.8,6.54141012]
[1769463695063,6.0424978,2923.4,2921.8,6.54141012]
[1769463695399,6.0424978,2923.8,2922.0,6.07079034]
[1769463695602,0.717,2924.4,2922.0,6.07079034]
[1769463695603,6.0424978,2923.6,2922.0,6.07079034]
[1769463696683,6.0444978,2923.4,2922.0,6.07079034]
[1769463696989,0.60444978,2923.3,2922.1,0.6926398]
[1769463697395,0.60444978,2923.3,2922.2,0.85551981]
[1769463697776,0.60444978,2923.3,2922.3,0.71181913]
[1769463698099,0.60444978,2923.3,2922.4,0.71181913]
[1769463698288,0.60444978,2923.3,2922.5,0.71181913]
[1769463698495,0.66489476,2923.2,2922.2,6.92631015]
[1769463698709,0.66489476,2923.2,2922.3,0.71173278]
[1769463698896,0.66489476,2923.2,2922.4,0.71173278]
[1769463699085,0.66489476,2923.2,2922.5,0.71173278]
[1769463699279,0.66489476,2923.2,2922.2,0.85551981]
[1769463699597,0.66489476,2923.2,2922.3,0.71181524]
[1769463699793,6.0424978,2923.0,2922.4,0.71181524]
[1769463700114,6.0424978,2923.0,2922.1,0.85553316]
[1769463700317,0.85499643,2924.0,2922.1,0.85553316]
[1769463700318,0.012,2927.4,2924.1,0.00170091]
[1769463700515,8.015798,2927.3,2925.2,7.18187991]
[1769463700674,7.17479405,2926.8,2925.3,1.43518799]
[1769463700880,7.17479405,2926.6,2925.3,3.98490366]
[1769463701183,7.17479405,2926.6,2924.8,0.717]
[1769463701184,7.17479405,2926.4,2924.8,0.717]
[1769463701508,7.17479405,2926.4,2925.1,29.986262]
[1769463701807,7.17479405,2926.4,2925.2,0.70909114]
[1769463701993,7.17479405,2926.4,2925.3,0.70909114]
[1769463702193,7.17479405,2927.9,2925.2,7.54345021]
[1769463702395,7.17479405,2927.5,2925.3,1.53439545]
[1769463702596,7.17479405,2927.3,2925.8,7.18187991]
[1769463702798,0.143,2928.8,2926.4,29.986262]
[1769463702989,14.0582958,2928.2,2926.5,0.70835043]
[1769463703188,8.015798,2928.1,2926.6,0.70632619]
[1769463703522,1.40582958,2928.0,2926.7,0.85420439]
[1769463703728,6.0424978,2927.9,2926.6,0.85421563]
[1769463704017,5.917217,2928.2,2926.6,1.57121563]
[1769463704421,5.917217,2928.2,2926.5,3.41703106]
[1769463704422,6.0424978,2928.1,2926.1,6.07079034]
[1769463704619,6.0424978,2928.1,2926.3,3.41727079]
[1769463704905,6.0424978,2928.1,2926.7,0.85420439]
[1769463704906,7.170778,2928.0,2926.7,0.85420439]
[1769463705106,1.32132758,2927.9,2926.7,0.85420439]
[1769463705307,6.0424978,2928.1,2926.7,0.85420439]
[1769463705308,3.218556,2928.0,2926.7,0.85420439]
[1769463705499,6.0424978,2927.9,2926.2,9.48812677]
[1769463705698,6.0424978,2931.5,2928.0,1.74371517]
[1769463705911,4.10324724,2933.6,2929.3,3.218556]
[1769463705912,6.0424978,2931.1,2929.3,3.218556]
[1769463706079,6.0424978,2931.0,2929.9,3.218556]
[1769463706279,0.60424978,2931.4,2930.1,3.218556]
[1769463706513,10.8397398,2931.8,2930.0,3.935556]
[1769463706815,0.717,2933.2,2929.4,6.07079034]
[1769463706816,6.0424978,2931.5,2929.4,6.07079034]
[1769463707027,4.3924978,2931.3,2929.4,0.2335703]
[1769463707192,6.0424978,2932.2,2929.8,3.218556]
[1769463707511,6.0424978,2931.8,2929.9,0.85327144]
[1769463707712,4.797242,2931.6,2929.9,0.85327144]
[1769463708216,6.0424978,2931.3,2928.9,6.07079034]
[1769463708382,6.0424978,2931.1,2929.0,0.85352625]
[1769463708583,12.37773737,2930.8,2928.7,14.5]
[1769463708778,4.797242,2930.6,2928.7,14.5]
[1769463708977,0.717,2931.6,2928.4,0.8536883]
[1769463708978,12.37773737,2930.4,2928.4,0.8536883]
[1769463709232,12.37773737,2930.4,2927.9,7.81376091]
[1769463709233,12.37773737,2930.2,2927.9,7.81376091]
[1769463709523,12.37773737,2930.2,2927.4,0.85400013]
[1769463709524,4.797242,2929.7,2927.4,0.85400013]
[1769463709683,4.797242,2929.7,2927.5,0.128]
[1769463710110,0.717,2930.2,2927.9,7.18187991]
[1769463710310,4.797242,2930.1,2928.0,0.71818799]
[1769463710535,7.58049537,2930.0,2928.0,0.71818799]
[1769463710749,4.797242,2929.7,2927.6,0.128]
[1769463711562,7.58049537,2929.6,2927.6,0.98192715]
[1769463711794,4.797242,2929.5,2927.6,0.98192715]
[1769463711963,5.95255277,2938.2,2932.2,0.012]
[1769463712113,7.58049537,2934.0,2932.9,0.17827782]
[1769463712308,0.53325024,2933.9,2932.9,0.17827782]
[1769463713040,1.01501522,2934.1,2932.9,0.17827782]
[1769463713250,7.58049537,2934.3,2932.9,0.17827782]
[1769463713553,8.592,2935.0,2933.0,0.85236958]
[1769463713708,1.61724954,2934.9,2933.2,0.128]
[1769463713913,7.58049537,2936.1,2933.2,0.128]
[1769463714112,7.58049537,2935.7,2933.3,0.2335703]
[1769463714329,2.115138,2935.6,2933.2,1.8631926]
[1769463714529,7.58049537,2935.3,2933.1,1.16001257]
[1769463714737,3.779296,2935.1,2933.1,0.44401257]
[1769463714978,3.711574,2934.9,2933.1,0.44401257]
[1769463715273,3.711574,2934.9,2933.1,0.44101257]
[1769463715458,3.910841,2934.9,2933.1,0.44101257]
[1769463715661,34.34663937,2934.7,2932.9,0.17827782]
[1769463715832,10.767684,2934.5,2932.9,0.17827782]
[1769463716033,3.046701,2934.5,2932.9,0.17827782]
[1769463716346,1.13597914,2935.0,2933.2,0.85231146]
[1769463716540,7.58049537,2935.6,2933.4,0.55]
[1769463716861,15.732779,2935.7,2933.0,0.85235208]
[1769463716862,7.58049537,2935.2,2933.0,0.85235208]
[1769463717061,7.58049537,2935.2,2932.9,0.17827782]
[1769463717062,7.58049537,2934.8,2932.9,1.03065801]
[1769463717262,7.58049537,2934.4,2932.9,0.17827782]
[1769463717464,4.761538,2934.3,2932.9,1.0306724]
[1769463717663,1.23420334,2934.2,2932.9,1.0306724]
[1769463717839,1.23420334,2934.2,2932.9,0.17827782]
[1769463718476,1.23420334,2934.2,2932.9,0.85239432]
[1769463718675,30.0,2935.0,2933.1,0.549999]
[1769463718979,2.592172,2935.0,2933.1,0.549999]
[1769463719276,3.006701,2934.9,2933.1,0.549999]
[1769463719569,8.772681,2934.9,2933.1,0.85232941]
[1769463719735,7.58049537,2935.0,2933.1,0.85232941]
[1769463720062,9.0180462,2939.6,2936.7,0.549999]
[1769463720368,9.0180462,2939.2,2936.3,14.5]
[1769463720676,9.0180462,2938.6,2936.4,1.45]
[1769463720878,9.0180462,2938.3,2935.7,0.128]
[1769463721031,2.16466,2938.1,2936.3,2.6393]
[1769463721236,2.16466,2938.1,2935.6,14.5]
[1769463721237,8.9930462,2937.8,2935.7,0.128]
[1769463721468,8.9930462,2937.8,2935.8,0.85155664]
[1769463721686,30.0,2938.6,2936.7,2.6393]
[1769463721892,3.0,2938.5,2936.9,0.128]
[1769463722087,8.9930462,2939.4,2937.1,6.72759234]
[1769463722088,9.280999,2939.3,2937.1,6.72759234]
[1769463722387,8.9930462,2938.9,2936.8,2.6393]
[1769463722704,1.75229372,2939.5,2935.4,0.85166415]
[1769463722705,8.9930462,2938.3,2935.4,0.85166415]
[1769463722865,8.9930462,2937.9,2934.3,6.72759234]
[1769463723187,8.9930462,2937.3,2934.4,2.6393]
[1769463723332,8.9930462,2937.1,2934.4,2.6393]
[1769463723535,0.715,2937.8,2934.4,2.60522]
[1769463723536,8.9930462,2936.5,2934.4,2.60522]
[1769463723765,27.991718,2936.0,2934.2,2.60522]
[1769463723967,2.550244,2935.8,2934.1,2.60522]
[1769463724176,8.9930462,2935.3,2933.2,0.42616915]
[1769463724347,8.9930462,2935.1,2932.8,0.85240547]
[1769463724673,6.493139,2934.9,2933.1,2.60522]
[1769463724866,0.97926668,2936.8,2932.2,21.23959234]
[1769463724867,13.3605742,2934.8,2933.0,2.60522]
[1769463725076,13.7101342,2934.7,2932.7,2.60522]
[1769463725287,2.915423,2934.6,2932.7,2.60522]
[1769463725449,1.19084692,2934.5,2933.0,2.60522]
[1769463725650,2.75779264,2934.5,2933.0,2.60522]
[1769463725885,11.75083884,2934.5,2932.9,2.60522]
[1769463726174,3.983277,2934.4,2932.8,0.260522]